[Event "17th Aeroflot Open-A 2019"]
[Site "Moscow"]
[Date "2019.02.20"]
[Round "1.31"]
[White "Henderson de La Fuente, Lance"]
[Black "Goganov, Aleksey"]
[Result "1/2-1/2"]
[ECO "C67"]
[WhiteElo "2490"]
[BlackElo "2612"]
[Annotator "RC"]
[PlyCount "60"]
[EventDate "2019.02.19"]
[EventCountry "RUS"]
[SourceTitle "playchess.com"]
[Source "ChessBase"]
[SourceQuality "1"]
[TimeControl "40/5400+30:1800+30"]

1. e4 {[%emt 0:00:00]} e5 {[%emt 0:00:00]} 2. Nf3 {[%emt 0:00:00]} Nc6 {[%emt 0:00:00]} 3. Bb5 {[%emt 0:00:04]} Nf6 {[%emt 0:00:00]} 4. O-O {[%emt 0:00:23]} Nxe4 {[%emt 0:00:00]} 5. Re1 {[%emt 0:00:22]} Nd6 {[%emt 0:00:00]} 6. Nxe5 {[%emt 0:00:08]} Be7 {[%emt 0:00:03]} 7. Bf1 {[%emt 0:00:14]} Nxe5 {[%emt 0:00:11]} 8. Rxe5 {[%emt 0:00:05]} O-O {[%emt 0:00:08]} 9. d4 {[%emt 0:00:11]} Bf6 {[%emt 0:00:05]} 10. Re1 {[%emt 0:00:11]} Re8 {[%emt 0:00:05]} 11. Bf4 {[%emt 0:00:21]} Rxe1 {[%emt 0:01:04]} 12. Qxe1 {[%emt 0:00:31]} Ne8 {[%emt 0:00:17]} 13. Qe3 {[%emt 0:00:46]} d5 {[%emt 0:04:39]} 14. Nd2 {[%emt 0:00:22]} Bf5 {[%emt 0:05:46]} 15. c3 {[%emt 0:00:38]} Nd6 {[%emt 0:02:34]} 16. Re1 {[%emt 0:00:41]} Qd7 {[%emt 0:03:31]} 17. Qg3 {[%emt 0:02:03]} Re8 {[%emt 0:01:53]} 18. Rxe8+ {[%emt 0:12:31]} Nxe8 {[%emt 0:00:11]} 19. b3 {[%emt 0:01:28]} Be7 {[%emt 0:05:29]} 20. h4 {[%emt 0:06:07]} c6 {[%emt 0:03:52]} 21. h5 {[%emt 0:10:29]} Nf6 {[%emt 0:01:52]} 22. Be2 {[%emt 0:00:22]} Qe6 {[%emt 0:01:58]} 23. h6 {[%emt 0:09:53]} g6 {[%emt 0:01:52]} 24. Be3 {[%emt 0:02:26]} Bd6 {[%emt 0:05:32]} 25. Qh4 {[%emt 0:01:44]} Bf8 {[%emt 0:03:26]} 26. Qg3 {[%emt 0:06:20]} Bd6 {[%emt 0:08:09]} 27. Qh4 {[%emt 0:00:15]} Bf8 {[%emt 0:00:28]} 28. Qh2 {[%emt 0:05:21]} Bd6 {[%emt 0:02:15]} 29. Qh4 {[%emt 0:00:17]} Bf8 {[%emt 0:00:06]} 30. Qh2 {[%emt 0:00:33]} Bd6 {[%emt 0:00:06]} 1/2-1/2

[Event "17th Aeroflot Open-A 2019"]
[Site "Moscow"]
[Date "2019.02.19"]
[Round "1.32"]
[White "Lupulescu, Constantin"]
[Black "Sargsyan, Shant"]
[Result "*"]
[ECO "A40"]
[WhiteElo "2610"]
[BlackElo "2488"]
[Annotator "RC"]
[PlyCount "26"]
[EventDate "2019.02.19"]
[EventCountry "RUS"]
[SourceTitle "playchess.com"]
[Source "ChessBase"]
[SourceQuality "1"]
[TimeControl "40/5400+30:1800+30"]

1. d4 {[%emt 0:00:00]} Nf6 {[%emt 0:00:00]} 2. c4 {[%emt 0:00:00]} e6 {[%emt 0:00:00]} 3. Nf3 {[%emt 0:00:00]} d5 {[%emt 0:00:00]} 4. Nc3 {[%emt 0:00:00]} Bb4 {[%emt 0:00:00]} 5. cxd5 {[%emt 0:00:00]} exd5 {[%emt 0:00:00]} 6. Bg5 {[%emt 0:00:00]} h6 {[%emt 0:00:00]} 7. Bh4 {[%emt 0:00:00]} O-O {[%emt 0:00:00]} 8. e3 {[%emt 0:00:00]} Bf5 {[%emt 0:00:00]} 9. Qb3 {[%emt 0:00:00]} Bxc3+ {[%emt 0:00:00]} 10. Qxc3 {[%emt 0:00:00]} Nbd7 {[%emt 0:00:00]} 11. Be2 {[%emt 0:00:00]} c6 {[%emt 0:03:06]} 12. Qa3 {[%emt 0:00:00]} Qb6 {[%emt 0:06:32]} 13. Nd2 {[%emt 0:00:00]} a5 {[%emt 0:05:57]} *

[Event "17th Aeroflot Open-A 2019"]
[Site "Moscow"]
[Date "2019.02.19"]
[Round "1.33"]
[White "Tahbaz, Arash"]
[Black "Idani, Pouya"]
[Result "*"]
[ECO "B51"]
[WhiteElo "2484"]
[BlackElo "2604"]
[Annotator "RC"]
[PlyCount "24"]
[EventDate "2019.02.19"]
[EventCountry "RUS"]
[SourceTitle "playchess.com"]
[Source "ChessBase"]
[SourceQuality "1"]
[TimeControl "40/5400+30:1800+30"]

1. e4 {[%emt 0:00:00]} c5 {[%emt 0:00:00]} 2. Nf3 {[%emt 0:00:00]} d6 {[%emt 0:00:00]} 3. Bb5+ {[%emt 0:00:00]} Nc6 {[%emt 0:00:00]} 4. O-O {[%emt 0:00:00]} Bd7 {[%emt 0:00:00]} 5. Re1 {[%emt 0:00:00]} Nf6 {[%emt 0:00:00]} 6. c3 {[%emt 0:00:00]} a6 {[%emt 0:00:00]} 7. Bf1 {[%emt 0:00:00]} Bg4 {[%emt 0:00:00]} 8. h3 {[%emt 0:00:00]} Bxf3 {[%emt 0:00:00]} 9. Qxf3 {[%emt 0:00:00]} e6 {[%emt 0:00:00]} 10. d3 {[%emt 0:15:54]} Be7 {[%emt 0:00:00]} 11. Nd2 {[%emt 0:00:27]} O-O {[%emt 0:00:00]} 12. Qe2 {[%emt 0:03:47]} Nd7 {[%emt 0:02:41]} *

[Event "17th Aeroflot Open-A 2019"]
[Site "Moscow"]
[Date "2019.02.19"]
[Round "1.34"]
[White "Jumabayev, Rinat"]
[Black "Iniyan, P."]
[Result "*"]
[ECO "A05"]
[WhiteElo "2604"]
[BlackElo "2480"]
[Annotator "ChessBase"]
[PlyCount "31"]
[EventDate "2019.02.19"]
[EventCountry "RUS"]
[SourceTitle "playchess.com"]
[Source "ChessBase"]
[SourceQuality "1"]
[TimeControl "40/5400+30:1800+30"]

1. Nf3 Nf6 2. g3 g6 3. Bg2 Bg7 4. d4 d6 5. c4 O-O 6. Nc3 Nc6 7. O-O Bg4 8. h3 Bxf3 9. Bxf3 Nd7 10. e3 e5 11. d5 Ne7 12. e4 f5 13. exf5 gxf5 14. Bg2 Ng6 15. Rb1 e4 16. Ne2 *

[Event "17th Aeroflot Open-A 2019"]
[Site "Moscow"]
[Date "2019.02.20"]
[Round "1.34"]
[White "Jumabayev, Rinat"]
[Black "Iniyan, P."]
[Result "1/2-1/2"]
[ECO "B50"]
[WhiteElo "2604"]
[BlackElo "2480"]
[Annotator "RC"]
[PlyCount "100"]
[EventDate "2019.02.19"]
[EventCountry "RUS"]
[SourceTitle "playchess.com"]
[Source "ChessBase"]
[SourceQuality "1"]
[TimeControl "40/5400+30:1800+30"]

1. e4 {[%emt 0:00:00]} c5 {[%emt 0:00:00]} 2. Nf3 {[%emt 0:00:00]} d6 {[%emt 0:00:08]} 3. Bc4 {[%emt 0:00:21]} Nf6 {[%emt 0:00:39]} 4. d3 {[%emt 0:00:06]} e6 {[%emt 0:00:09]} 5. Bb3 {[%emt 0:00:01]} a6 {[%emt 0:01:54]} 6. c3 {[%emt 0:00:27]} Nbd7 {[%emt 0:00:27]} 7. O-O {[%emt 0:00:22]} b5 {[%emt 0:02:46]} 8. Re1 {[%emt 0:01:28]} Bb7 {[%emt 0:00:08]} 9. Nbd2 {[%emt 0:00:30]} Be7 {[%emt 0:02:09]} 10. Nf1 {[%emt 0:03:21]} c4 {[%emt 0:11:35]} 11. dxc4 {[%emt 0:00:06]} Nxe4 {[%emt 0:00:12]} 12. cxb5 {[%emt 0:00:12]} axb5 {[%emt 0:00:04]} 13. Nd4 {[%emt 0:00:07]} O-O {[%emt 0:22:55]} 14. Bc2 {[%emt 0:12:54]} Ndf6 {[%emt 0:02:12]} 15. Nxb5 {[%emt 0:05:15]} Qb6 {[%emt 0:00:33]} 16. Nd4 {[%emt 0:00:06]} e5 {[%emt 0:01:39]} 17. Ng3 {[%emt 0:00:14]} Nxg3 {[%emt 0:06:12]} 18. hxg3 {[%emt 0:00:08]} exd4 {[%emt 0:00:03]} 19. Rxe7 {[%emt 0:00:11]} dxc3 {[%emt 0:00:14]} 20. bxc3 {[%emt 0:01:26]} Qc6 {[%emt 0:00:08]} 21. Qf3 {[%emt 0:00:36]} Qxf3 {[%emt 0:01:33]} 22. gxf3 Bxf3 {[%emt 0:00:16]} 23. Re3 {[%emt 0:01:56]} Bd5 {[%emt 0:01:49]} 24. a4 {[%emt 0:00:39]} Rfc8 {[%emt 0:04:35]} 25. Ba3 {[%emt 0:11:49]} Ng4 {[%emt 0:07:44]} 26. Re2 {[%emt 0:03:34]} Bf3 {[%emt 0:02:14]} 27. Rd2 {[%emt 0:00:30]} Rxc3 {[%emt 0:00:13]} 28. Bxd6 {[%emt 0:05:46]} Rac8 {[%emt 0:00:07]} 29. Re1 {[%emt 0:05:42]} Nf6 {[%emt 0:09:51]} 30. Rd3 {[%emt 0:04:19]} Rxc2 {[%emt 0:05:40]} 31. Rxf3 {[%emt 0:00:07]} Ra2 {[%emt 0:00:04]} 32. Ra3 {[%emt 0:01:17]} Rcc2 {[%emt 0:04:09]} 33. Ra1 {[%emt 0:07:32]} Rxa1+ {[%emt 0:03:29]} 34. Rxa1 {[%emt 0:00:57]} Ne4 {[%emt 0:00:31]} 35. Bb8 {[%emt 0:11:49]} Nc5 {[%emt 0:02:11]} 36. a5 {[%emt 0:00:49]} Na6 {[%emt 0:00:11]} 37. Ba7 {[%emt 0:02:17]} h6 {[%emt 0:00:37]} 38. Kg2 {[%emt 0:01:03]} Kf8 {[%emt 0:01:27]} 39. Kf3 {[%emt 0:01:20]} Ke7 {[%emt 0:00:14]} 40. Bd4 {[%emt 0:00:00]} g6 {[%emt 0:00:00]} 41. Rb1 {[%emt 0:00:54]} Ra2 {[%emt 0:02:50]} 42. Ra1 {[%emt 0:02:07]} Rxa1 {[%emt 0:12:03]} 43. Bxa1 {[%emt 0:00:17]} Kd6 {[%emt 0:01:02]} 44. Bg7 {[%emt 0:02:26]} h5 {[%emt 0:00:06]} 45. Kf4 {[%emt 0:00:08]} Kd5 {[%emt 0:00:21]} 46. Kg5 {[%emt 0:06:10]} Nc5 {[%emt 0:00:10]} 47. Kf6 {[%emt 0:00:11]} Ne4+ {[%emt 0:00:04]} 48. Kxf7 {[%emt 0:00:58]} Nxf2 {[%emt 0:00:06]} 49. Kxg6 {[%emt 0:00:03]} Ne4 {[%emt 0:00:06]} 50. Kxh5 {[%emt 0:00:02]} Nxg3+ {[%emt 0:00:06]} 1/2-1/2

[Event "17th Aeroflot Open-A 2019"]
[Site "Moscow"]
[Date "2019.02.20"]
[Round "1.36"]
[White "Esipenko, Andrey"]
[Black "Dai, Changren"]
[Result "1-0"]
[ECO "D31"]
[WhiteElo "2603"]
[BlackElo "2473"]
[Annotator "RC"]
[PlyCount "59"]
[EventDate "2019.02.19"]
[EventCountry "RUS"]
[SourceTitle "playchess.com"]
[Source "ChessBase"]
[SourceQuality "1"]
[TimeControl "40/5400+30:1800+30"]

1. d4 {[%emt 0:00:00]} d5 {[%emt 0:00:00]} 2. c4 {[%emt 0:00:00]} e6 {[%emt 0:00:00]} 3. Nc3 {[%emt 0:00:00]} Be7 {[%emt 0:00:00]} 4. Nf3 {[%emt 0:00:00]} Nf6 {[%emt 0:00:00]} 5. Bg5 {[%emt 0:00:00]} h6 {[%emt 0:00:28]} 6. Bf4 {[%emt 0:00:03]} O-O {[%emt 0:02:12]} 7. e3 {[%emt 0:00:05]} Nbd7 {[%emt 0:00:33]} 8. g4 {[%emt 0:00:15]} dxc4 {[%emt 0:03:07]} 9. Bxc4 {[%emt 0:00:05]} c5 {[%emt 0:00:08]} 10. g5 {[%emt 0:00:09]} hxg5 {[%emt 0:00:26]} 11. Bxg5 {[%emt 0:00:05]} cxd4 {[%emt 0:01:24]} 12. exd4 {[%emt 0:00:07]} b5 {[%emt 0:02:57]} 13. Bxb5 {[%emt 0:00:29]} Nd5 {[%emt 0:05:18]} 14. Rg1 {[%emt 0:03:00]} Bxg5 {[%emt 0:16:24]} 15. Nxg5 {[%emt 0:05:43]} Nxc3 {[%emt 0:05:06]} 16. bxc3 {[%emt 0:03:37]} Qa5 {[%emt 0:05:41]} 17. Qd3 {[%emt 0:38:05]} Nf6 {[%emt 0:00:07]} 18. a4 {[%emt 0:16:30]} Bb7 {[%emt 0:18:34]} 19. Qg3 {[%emt 0:02:58]} Nh5 {[%emt 0:03:33]} 20. Qd3 {[%emt 0:01:36]} Nf6 {[%emt 0:00:27]} 21. Qg3 {[%emt 0:02:07]} Nh5 {[%emt 0:00:03]} 22. Qh3 {[%emt 0:00:25]} g6 {[%emt 0:01:20]} 23. Rc1 {[%emt 0:04:10]} Ba6 {[%emt 0:06:12]} 24. Ne4 {[%emt 0:01:41]} Bb7 {[%emt 0:08:24]} 25. Nc5 {[%emt 0:01:19]} Nf4 {[%emt 0:02:05]} 26. Qg3 {[%emt 0:01:38]} Qc7 {[%emt 0:02:44]} 27. Nxb7 {[%emt 0:00:58]} a6 {[%emt 0:00:18]} 28. Be2 {[%emt 0:01:50]} e5 {[%emt 0:00:54]} 29. Nc5 {[%emt 0:00:16]} Rfe8 {[%emt 0:02:46]} 30. Nd3 {[%emt 0:03:41]} 1-0

[Event "17th Aeroflot Open-A 2019"]
[Site "Moscow"]
[Date "2019.02.20"]
[Round "1.37"]
[White "Harika, Dronavalli"]
[Black "Gordievsky, Dmitry"]
[Result "1-0"]
[ECO "B00"]
[WhiteElo "2471"]
[BlackElo "2603"]
[Annotator "RC"]
[PlyCount "159"]
[EventDate "2019.02.19"]
[EventCountry "RUS"]
[SourceTitle "playchess.com"]
[Source "ChessBase"]
[SourceQuality "1"]
[TimeControl "40/5400+30:1800+30"]

1. e4 {[%emt 0:00:00]} d6 {[%emt 0:00:00]} 2. d4 {[%emt 0:00:00]} Nf6 {[%emt 0:01:46]} 3. Bd3 {[%emt 0:00:00]} Nc6 {[%emt 0:11:20]} 4. c3 {[%emt 0:01:53]} e5 {[%emt 0:04:10]} 5. Nf3 {[%emt 0:01:36]} g6 {[%emt 0:02:07]} 6. O-O {[%emt 0:02:27]} Bg7 {[%emt 0:00:58]} 7. Nbd2 {[%emt 0:19:10]} O-O {[%emt 0:05:07]} 8. h3 {[%emt 0:00:14]} Nd7 {[%emt 0:08:13]} 9. Nb3 {[%emt 0:03:01]} a5 {[%emt 0:01:24]} 10. a4 {[%emt 0:03:46]} exd4 {[%emt 0:04:35]} 11. Nfxd4 {[%emt 0:06:55]} Re8 {[%emt 0:12:50]} 12. Re1 {[%emt 0:01:49]} Nb6 {[%emt 0:04:37]} 13. Bf1 {[%emt 0:02:49]} Nxd4 {[%emt 0:16:31]} 14. Nxd4 {[%emt 0:01:26]} d5 {[%emt 0:00:19]} 15. Bf4 {[%emt 0:14:03]} c6 {[%emt 0:00:20]} 16. Nb3 {[%emt 0:08:24]} Bf8 {[%emt 0:11:54]} 17. Qd4 {[%emt 0:03:32]} Bg7 {[%emt 0:01:32]} 18. Qd2 {[%emt 0:03:56]} Nc4 {[%emt 0:02:55]} 19. Bxc4 {[%emt 0:02:43]} dxc4 {[%emt 0:00:24]} 20. Qxd8 {[%emt 0:00:09]} Rxd8 {[%emt 0:00:04]} 21. Nxa5 {[%emt 0:01:21]} Bf8 {[%emt 0:07:42]} 22. Nxc4 {[%emt 0:12:01]} Be6 {[%emt 0:00:02]} 23. Nd2 {[%emt 0:00:23]} c5 {[%emt 0:02:01]} 24. a5 {[%emt 0:03:18]} Ra6 {[%emt 0:00:17]} 25. Nf3 {[%emt 0:00:24]} Rc8 {[%emt 0:00:47]} 26. Red1 {[%emt 0:01:52]} h6 {[%emt 0:00:22]} 27. Nh2 {[%emt 0:02:10]} g5 {[%emt 0:00:19]} 28. Bg3 {[%emt 0:00:14]} Kh7 {[%emt 0:00:14]} 29. Ng4 {[%emt 0:00:37]} Be7 {[%emt 0:00:34]} 30. Ne3 {[%emt 0:00:31]} c4 {[%emt 0:00:46]} 31. Nf5 {[%emt 0:01:06]} Bc5 {[%emt 0:00:14]} 32. Nd6 {[%emt 0:01:45]} Bxd6 {[%emt 0:00:19]} 33. Bxd6 {[%emt 0:00:30]} b6 {[%emt 0:00:43]} 34. axb6 {[%emt 0:00:26]} Rxb6 {[%emt 0:00:01]} 35. Bb4 {[%emt 0:00:10]} Rb7 {[%emt 0:00:51]} 36. f3 {[%emt 0:00:15]} Rd7 {[%emt 0:00:33]} 37. Rxd7 {[%emt 0:00:25]} Bxd7 {[%emt 0:00:01]} 38. Kf2 {[%emt 0:00:20]} Be6 {[%emt 0:00:17]} 39. Rd1 {[%emt 0:00:05]} Kg6 {[%emt 0:00:54]} 40. Rd6 {[%emt 0:00:00]} h5 {[%emt 0:00:00]} 41. g3 {[%emt 0:05:16]} Kh7 {[%emt 0:03:06]} 42. h4 {[%emt 0:01:30]} gxh4 {[%emt 0:00:28]} 43. gxh4 {[%emt 0:00:05]} Rc7 {[%emt 0:06:29]} 44. Rb6 {[%emt 0:01:53]} Rd7 {[%emt 0:01:16]} 45. Rb5 {[%emt 0:03:41]} Rd2+ {[%emt 0:00:26]} 46. Ke3 {[%emt 0:00:19]} Rxb2 {[%emt 0:00:19]} 47. Rxh5+ {[%emt 0:00:05]} Kg6 {[%emt 0:00:12]} 48. Rg5+ {[%emt 0:00:07]} Kh7 {[%emt 0:00:14]} 49. Be7 {[%emt 0:00:35]} Rh2 {[%emt 0:01:14]} 50. Rg1 {[%emt 0:09:26]} f5 {[%emt 0:00:59]} 51. Bf6 {[%emt 0:00:16]} fxe4 {[%emt 0:01:03]} 52. fxe4 {[%emt 0:00:06]} Kh6 {[%emt 0:00:56]} 53. Kf4 {[%emt 0:02:40]} Bf7 {[%emt 0:01:10]} 54. Rg3 {[%emt 0:01:20]} Re2 {[%emt 0:03:09]} 55. Kf5 Rf2+ 56. Ke5 Re2 57. Bg5+ Kg7 58. Kd4 Kh7 59. e5 Re1 60. Bf6 Rd1+ 61. Kc5 Kh6 62. Rg7 Be6 63. Re7 Bg8 64. Re8 Bf7 65. Rh8+ Kg6 66. h5+ Kf5 67. h6 Rd7 68. Rf8 Kg6 69. Bg7 Kh7 70. Rb8 Rd5+ 71. Kb4 Rd7 72. Rb6 Bg8 73. Rd6 Rc7 74. Bf8 Rc8 75. Rd7+ Kh8 76. Bg7+ Kh7 77. Re7 Kg6 78. Rd7 Bf7 79. Rd6+ Kh7 80. e6 1-0

[Event "17th Aeroflot Open-A 2019"]
[Site "Moscow"]
[Date "2019.02.20"]
[Round "1.39"]
[White "Kevlishvili, Robby"]
[Black "Donchenko, Alexander"]
[Result "0-1"]
[ECO "B13"]
[WhiteElo "2463"]
[BlackElo "2600"]
[Annotator "RC"]
[PlyCount "86"]
[EventDate "2019.02.19"]
[EventCountry "RUS"]
[SourceTitle "playchess.com"]
[Source "ChessBase"]
[SourceQuality "1"]
[TimeControl "40/5400+30:1800+30"]

1. e4 {[%emt 0:00:00]} c6 {[%emt 0:00:00]} 2. d4 {[%emt 0:00:00]} d5 {[%emt 0:00:00]} 3. exd5 {[%emt 0:00:00]} cxd5 {[%emt 0:00:00]} 4. Bd3 {[%emt 0:00:00]} Nc6 {[%emt 0:00:00]} 5. c3 {[%emt 0:00:00]} Qc7 {[%emt 0:00:10]} 6. Ne2 {[%emt 0:00:12]} Bg4 {[%emt 0:00:37]} 7. O-O {[%emt 0:00:18]} e6 {[%emt 0:00:22]} 8. Qe1 {[%emt 0:00:09]} Nf6 {[%emt 0:00:40]} 9. Bg5 {[%emt 0:00:13]} h6 {[%emt 0:00:26]} 10. Bh4 {[%emt 0:00:42]} Bxe2 {[%emt 0:00:21]} 11. Qxe2 {[%emt 0:00:19]} Bd6 {[%emt 0:00:10]} 12. h3 {[%emt 0:18:23]} O-O-O {[%emt 0:00:29]} 13. Na3 {[%emt 0:05:44]} Qe7 {[%emt 0:00:21]} 14. Nc2 {[%emt 0:02:16]} Rhg8 {[%emt 0:14:41]} 15. Ne3 {[%emt 0:06:49]} g5 {[%emt 0:08:37]} 16. Bg3 {[%emt 0:00:16]} h5 {[%emt 0:00:24]} 17. Rae1 {[%emt 0:06:54]} h4 {[%emt 0:09:00]} 18. Be5 {[%emt 0:12:57]} Nd7 {[%emt 0:11:04]} 19. Ng4 {[%emt 0:01:53]} Kb8 {[%emt 0:13:45]} 20. Qe3 {[%emt 0:13:00]} Rdf8 {[%emt 0:17:37]} 21. f4 {[%emt 0:09:48]} gxf4 {[%emt 0:00:19]} 22. Bxd6+ {[%emt 0:00:09]} Qxd6 {[%emt 0:00:04]} 23. Qxf4 {[%emt 0:00:06]} Kc7 {[%emt 0:01:27]} 24. Re2 {[%emt 0:03:40]} f5 {[%emt 0:05:31]} 25. Qxd6+ {[%emt 0:02:18]} Kxd6 {[%emt 0:00:02]} 26. Nh2 {[%emt 0:00:11]} Nf6 {[%emt 0:03:19]} 27. Rfe1 {[%emt 0:08:22]} Ne4 {[%emt 0:02:43]} 28. Nf3 {[%emt 0:00:09]} Rf6 {[%emt 0:04:38]} 29. Kh2 {[%emt 0:00:26]} Rh6 {[%emt 0:00:31]} 30. Re3 {[%emt 0:02:18]} Rg7 {[%emt 0:02:46]} 31. Rf1 {[%emt 0:01:22]} Ne7 {[%emt 0:01:32]} 32. c4 {[%emt 0:03:43]} Ng6 {[%emt 0:01:03]} 33. cxd5 {[%emt 0:00:06]} exd5 {[%emt 0:00:52]} 34. Ng1 {[%emt 0:00:07]} Rh5 {[%emt 0:00:53]} 35. Be2 {[%emt 0:03:40]} Rg5 {[%emt 0:00:42]} 36. Ra3 {[%emt 0:00:47]} Nf4 {[%emt 0:00:39]} 37. Bf3 {[%emt 0:00:38]} Rxg2+ {[%emt 0:00:45]} 38. Bxg2 {[%emt 0:00:09]} Rxg2+ {[%emt 0:00:04]} 39. Kh1 {[%emt 0:00:08]} Ng3+ {[%emt 0:00:23]} 40. Rxg3 {[%emt 0:00:00]} hxg3 {[%emt 0:00:00]} 41. Nf3 {[%emt 0:01:29]} Rxb2 {[%emt 0:00:31]} 42. Rg1 {[%emt 0:00:30]} g2+ {[%emt 0:01:02]} 43. Kh2 {[%emt 0:01:09]} Rxa2 {[%emt 0:02:45]} 0-1

[Event "17th Aeroflot Open-A 2019"]
[Site "Moscow"]
[Date "2019.02.21"]
[Round "2.6"]
[White "Donchenko, Alexander"]
[Black "Ganguly, Surya Shekhar"]
[Result "1/2-1/2"]
[ECO "A06"]
[WhiteElo "2600"]
[BlackElo "2636"]
[Annotator "ChessBase"]
[PlyCount "60"]
[EventDate "2019.02.19"]
[EventCountry "RUS"]
[SourceTitle "playchess.com"]
[Source "ChessBase"]
[SourceQuality "1"]
[TimeControl "40/5400+30:1800+30"]

1. Nf3 {[%emt 0:00:00]} d5 {[%emt 0:00:10]} 2. g3 {[%emt 0:00:00]} Nf6 {[%emt 0:01:02]} 3. Bg2 {[%emt 0:00:11]} e6 {[%emt 0:00:09]} 4. O-O {[%emt 0:00:21]} Be7 {[%emt 0:00:06]} 5. c4 {[%emt 0:00:25]} O-O {[%emt 0:00:09]} 6. d4 {[%emt 0:00:11]} dxc4 {[%emt 0:00:07]} 7. Qc2 {[%emt 0:00:29]} c6 {[%emt 0:00:17]} 8. Qxc4 {[%emt 0:02:16]} b5 {[%emt 0:00:06]} 9. Qc2 {[%emt 0:01:14]} Bb7 {[%emt 0:00:09]} 10. Rd1 {[%emt 0:01:19]} Nbd7 {[%emt 0:00:08]} 11. Nc3 {[%emt 0:02:03]} b4 {[%emt 0:23:23]} 12. Na4 {[%emt 0:07:02]} Qa5 {[%emt 0:00:21]} 13. Ne1 {[%emt 0:22:04]} Ba6 {[%emt 0:13:16]} 14. Nd3 {[%emt 0:03:33]} Bxd3 {[%emt 0:07:35]} 15. Rxd3 {[%emt 0:00:08]} Rac8 {[%emt 0:00:04]} 16. Be3 {[%emt 0:14:54]} Nd5 {[%emt 0:04:32]} 17. Bd2 {[%emt 0:00:54]} c5 {[%emt 0:11:09]} 18. dxc5 {[%emt 0:01:05]} Nxc5 {[%emt 0:04:27]} 19. Nxc5 {[%emt 0:00:16]} Bxc5 {[%emt 0:00:33]} 20. Qb3 {[%emt 0:00:46]} Qb6 {[%emt 0:00:22]} 21. Be1 {[%emt 0:02:18]} Nf6 {[%emt 0:01:23]} 22. h3 {[%emt 0:02:58]} h6 {[%emt 0:05:29]} 23. Rad1 {[%emt 0:06:00]} a5 {[%emt 0:00:34]} 24. a3 {[%emt 0:11:25]} Rfd8 {[%emt 0:02:22]} 25. Rxd8+ {[%emt 0:02:18]} Rxd8 {[%emt 0:00:09]} 26. Rc1 {[%emt 0:01:36]} Qb5 {[%emt 0:05:49]} 27. Kf1 {[%emt 0:09:46]} a4 {[%emt 0:03:32]} 28. Qc4 {[%emt 0:00:21]} Qxc4 {[%emt 0:00:07]} 29. Rxc4 {[%emt 0:00:05]} bxa3 {[%emt 0:00:27]} 30. bxa3 {[%emt 0:00:15]} Bxa3 {[%emt 0:00:09]} 1/2-1/2

[Event "17th Aeroflot Open-A 2019"]
[Site "Moscow"]
[Date "2019.02.21"]
[Round "2.10"]
[White "Kulaots, Kaido"]
[Black "Grachev, Boris"]
[Result "1/2-1/2"]
[ECO "B46"]
[WhiteElo "2542"]
[BlackElo "2626"]
[Annotator "ChessBase"]
[PlyCount "46"]
[EventDate "2019.02.19"]
[EventCountry "RUS"]
[SourceTitle "playchess.com"]
[Source "ChessBase"]
[SourceQuality "1"]
[TimeControl "40/5400+30:1800+30"]

1. e4 {[%emt 0:00:00]} c5 {[%emt 0:00:00]} 2. Nf3 {[%emt 0:00:00]} e6 {[%emt 0:00:00]} 3. d4 {[%emt 0:00:12]} cxd4 {[%emt 0:00:00]} 4. Nxd4 {[%emt 0:00:06]} Nc6 {[%emt 0:00:00]} 5. Nc3 {[%emt 0:00:29]} a6 {[%emt 0:00:00]} 6. Be3 {[%emt 0:00:35]} Nf6 {[%emt 0:00:10]} 7. a3 {[%emt 0:00:51]} Be7 {[%emt 0:01:31]} 8. f4 {[%emt 0:00:35]} d5 {[%emt 0:00:09]} 9. e5 {[%emt 0:00:35]} Nd7 {[%emt 0:00:05]} 10. g3 {[%emt 0:06:36]} Qc7 {[%emt 0:10:32]} 11. Qd2 {[%emt 0:05:41]} b5 {[%emt 0:18:43]} 12. Nxc6 {[%emt 0:07:17]} Qxc6 {[%emt 0:00:13]} 13. Bg2 {[%emt 0:00:55]} Nb6 {[%emt 0:07:15]} 14. b3 {[%emt 0:05:22]} b4 {[%emt 0:02:39]} 15. Ne2 {[%emt 0:01:06]} bxa3 {[%emt 0:01:55]} 16. Nd4 {[%emt 0:00:07]} Qc7 {[%emt 0:01:18]} 17. O-O {[%emt 0:04:20]} O-O {[%emt 0:00:35]} 18. g4 {[%emt 0:17:00]} Bd7 {[%emt 0:16:31]} 19. f5 {[%emt 0:08:38]} exf5 {[%emt 0:05:26]} 20. Nxf5 {[%emt 0:02:37]} Bc5 {[%emt 0:01:41]} 21. Kh1 {[%emt 0:02:48]} Bxe3 {[%emt 0:02:19]} 22. Qxe3 {[%emt 0:00:31]} Rae8 {[%emt 0:03:49]} 23. Nxg7 {[%emt 0:08:10]} Kxg7 {[%emt 0:16:16]} 1/2-1/2

[Event "17th Aeroflot Open-A 2019"]
[Site "Moscow"]
[Date "2019.02.21"]
[Round "2.15"]
[White "Wei, Yi"]
[Black "Fier, Alexandr"]
[Result "1-0"]
[ECO "B40"]
[WhiteElo "2733"]
[BlackElo "2561"]
[Annotator "ChessBase"]
[PlyCount "67"]
[EventDate "2019.02.19"]
[EventCountry "RUS"]
[SourceTitle "playchess.com"]
[Source "ChessBase"]
[SourceQuality "1"]
[TimeControl "40/5400+30:1800+30"]

1. e4 {[%emt 0:00:00]} c5 {[%emt 0:00:00]} 2. Nf3 {[%emt 0:00:00]} e6 {[%emt 0:00:00]} 3. d4 {[%emt 0:00:00]} cxd4 {[%emt 0:00:00]} 4. Nxd4 {[%emt 0:00:03]} Nf6 {[%emt 0:00:12]} 5. Nc3 {[%emt 0:00:10]} Nc6 {[%emt 0:00:05]} 6. Nxc6 {[%emt 0:03:18]} bxc6 {[%emt 0:00:06]} 7. e5 {[%emt 0:00:03]} Nd5 {[%emt 0:00:05]} 8. Ne4 {[%emt 0:00:04]} Qc7 {[%emt 0:00:53]} 9. f4 {[%emt 0:00:06]} Qb6 {[%emt 0:00:05]} 10. c4 {[%emt 0:00:50]} Bb4+ {[%emt 0:01:04]} 11. Ke2 {[%emt 0:00:04]} f5 {[%emt 0:00:08]} 12. exf6 {[%emt 0:00:08]} Nxf6 {[%emt 0:00:04]} 13. Be3 {[%emt 0:00:05]} Qd8 {[%emt 0:00:03]} 14. Nd6+ {[%emt 0:00:05]} Bxd6 {[%emt 0:00:03]} 15. Qxd6 {[%emt 0:00:06]} Bb7 {[%emt 0:00:03]} 16. Rd1 {[%emt 0:10:12]} Rc8 {[%emt 0:00:05]} 17. Rg1 {[%emt 0:01:34]} c5 {[%emt 0:00:05]} 18. g4 {[%emt 0:00:20]} Rc6 {[%emt 0:00:04]} 19. Qe5 {[%emt 0:01:06]} O-O {[%emt 0:00:06]} 20. g5 {[%emt 0:07:41]} Nh5 {[%emt 0:02:07]} 21. Bh3 {[%emt 0:00:06]} d6 {[%emt 0:00:04]} 22. Qxe6+ {[%emt 0:00:32]} Kh8 {[%emt 0:00:17]} 23. Rgf1 {[%emt 0:31:03]} Rb6 {[%emt 0:00:06]} 24. b3 {[%emt 0:06:43]} Ra6 {[%emt 0:00:07]} 25. Rd2 {[%emt 0:08:32]} d5 {[%emt 0:01:18]} 26. Qe5 {[%emt 0:00:19]} Re8 {[%emt 0:02:48]} 27. cxd5 {[%emt 0:00:06]} Rxe5 {[%emt 0:16:56]} 28. fxe5 {[%emt 0:00:03]} Bxd5 {[%emt 0:11:46]} 29. Bg2 {[%emt 0:04:38]} c4 {[%emt 0:32:55]} 30. Bxd5 {[%emt 0:05:29]} c3 {[%emt 0:00:02]} 31. Bb7 {[%emt 0:05:30]} cxd2 {[%emt 0:00:04]} 32. Bxa6 {[%emt 0:00:04]} Qe8 {[%emt 0:01:00]} 33. Bc4 {[%emt 0:00:58]} g6 {[%emt 0:01:26]} 34. e6 {[%emt 0:00:46]} 1-0